[Event "Titled Tuesday Blitz June 21 Early 2022"]
[White "Gormally, Daniel W"]
[Black "Nasir, Zehn"]
[WhiteFideId "406465"]
[BlackFideId "2613239"]
[WhiteElo "2543"]
[BlackElo "1993"]
[Result "0-1"]
[Round "06"]
[TimeControl "180+1"]
[Date "2022.06.21"]
[WhiteClock "0:00:12"]
[BlackClock "0:00:05"]

1. e4 {[%clk 0:03:00]}  c6 {[%clk 0:02:54]} 2. d4 {[%clk 0:02:59]}  d5 {[%clk 0:02:55]} 3. Nd2 {[%clk 0:02:59]}  dxe4 {[%clk 0:02:55]} 4. Nxe4 {[%clk 0:03:00]}  Bf5 {[%clk 0:02:55]} 5. Ng3 {[%clk 0:03:00]}  Bg6 {[%clk 0:02:56]} 6. Nh3 {[%clk 0:03:00]}  Nf6 {[%clk 0:02:54]} 7. Nf4 {[%clk 0:03:00]}  e5 {[%clk 0:02:54]} 8. Nxg6 {[%clk 0:02:59]}  hxg6 {[%clk 0:02:54]} 9. dxe5 {[%clk 0:02:50]}  Qa5+ {[%clk 0:02:54]} 10. Bd2 {[%clk 0:02:48]}  Qxe5+ {[%clk 0:02:54]} 11. Qe2 {[%clk 0:02:49]}  Nbd7 {[%clk 0:02:49]} 12. O-O-O {[%clk 0:02:49]}  Qxe2 {[%clk 0:02:42]} 13. Bxe2 {[%clk 0:02:48]}  Bc5 {[%clk 0:02:42]} 14. f4 {[%clk 0:02:39]}  O-O-O {[%clk 0:02:32]} 15. Bf3 {[%clk 0:02:39]}  Nb6 {[%clk 0:02:23]} 16. c3 {[%clk 0:02:14]}  Nc4 {[%clk 0:02:21]} 17. Kc2 {[%clk 0:01:57]}  Be3 {[%clk 0:01:58]} 18. Bc1 {[%clk 0:01:57]}  Bxc1 {[%clk 0:01:51]} 19. Kxc1 {[%clk 0:01:56]}  Rxd1+ {[%clk 0:01:31]} 20. Bxd1 {[%clk 0:01:52]}  Ne3 {[%clk 0:01:21]} 21. Bf3 {[%clk 0:01:51]}  Nfd5 {[%clk 0:01:21]} 22. Ne2 {[%clk 0:01:48]}  Kc7 {[%clk 0:01:06]} 23. h3 {[%clk 0:01:40]}  Re8 {[%clk 0:00:59]} 24. Rg1 {[%clk 0:01:34]}  Kd6 {[%clk 0:00:53]} 25. b3 {[%clk 0:01:34]}  Nf5 {[%clk 0:00:52]} 26. g3 {[%clk 0:01:25]}  Re3 {[%clk 0:00:50]} 27. Bxd5 {[%clk 0:01:23]}  Kxd5 {[%clk 0:00:36]} 28. Kd2 {[%clk 0:01:23]}  Ke4 {[%clk 0:00:34]} 29. g4 {[%clk 0:01:19]}  Rd3+ {[%clk 0:00:33]} 30. Kc1 {[%clk 0:01:11]}  Nh4 {[%clk 0:00:29]} 31. Kc2 {[%clk 0:00:56]}  Rxh3 {[%clk 0:00:28]} 32. Nd4 {[%clk 0:00:49]}  Rh2+ {[%clk 0:00:28]} 33. Kb1 {[%clk 0:00:49]}  Kd3 {[%clk 0:00:25]} 34. Rg3+ {[%clk 0:00:37]}  Ke4 {[%clk 0:00:22]} 35. Rg1 {[%clk 0:00:37]}  Kxf4 {[%clk 0:00:20]} 36. Rf1+ {[%clk 0:00:37]}  Kxg4 {[%clk 0:00:17]} 37. Rxf7 {[%clk 0:00:37]}  Nf5 {[%clk 0:00:15]} 38. Nxf5 {[%clk 0:00:26]}  gxf5 {[%clk 0:00:16]} 39. Rxg7+ {[%clk 0:00:27]}  Kf3 {[%clk 0:00:16]} 40. Rxb7 {[%clk 0:00:28]}  f4 {[%clk 0:00:15]} 41. Rxa7 {[%clk 0:00:28]}  Ke3 {[%clk 0:00:15]} 42. Re7+ {[%clk 0:00:28]}  Kd3 {[%clk 0:00:15]} 43. Rf7 {[%clk 0:00:28]}  Kxc3 {[%clk 0:00:14]} 44. a4 {[%clk 0:00:23]}  Kxb3 {[%clk 0:00:14]} 45. Kc1 {[%clk 0:00:22]}  Kc3 {[%clk 0:00:12]} 46. Kd1 {[%clk 0:00:22]}  Kd3 {[%clk 0:00:12]} 47. Ke1 {[%clk 0:00:21]}  Ke3 {[%clk 0:00:12]} 48. Re7+ {[%clk 0:00:21]}  Kf3 {[%clk 0:00:12]} 49. a5 {[%clk 0:00:20]}  Ra2 {[%clk 0:00:13]} 50. Re5 {[%clk 0:00:20]}  Kg3 {[%clk 0:00:11]} 51. Rg5+ {[%clk 0:00:20]}  Kf3 {[%clk 0:00:11]} 52. Re5 {[%clk 0:00:20]}  Ra3 {[%clk 0:00:10]} 53. Rc5 {[%clk 0:00:19]}  Ra1+ {[%clk 0:00:08]} 54. Kd2 {[%clk 0:00:19]}  Kf2 {[%clk 0:00:08]} 55. Kc2 {[%clk 0:00:18]}  f3 {[%clk 0:00:07]} 56. Kb2 {[%clk 0:00:19]}  Ra4 {[%clk 0:00:07]} 57. Kb3 {[%clk 0:00:19]}  Rf4 {[%clk 0:00:06]} 58. Rxc6 {[%clk 0:00:18]}  Ke3 {[%clk 0:00:06]} 59. Re6+ {[%clk 0:00:18]}  Kd3 {[%clk 0:00:05]} 60. Re1 {[%clk 0:00:17]}  f2 {[%clk 0:00:05]} 61. Rh1 {[%clk 0:00:16]}  Ke2 {[%clk 0:00:05]} 62. a6 {[%clk 0:00:16]}  Rf6 {[%clk 0:00:05]} 63. Ra1 {[%clk 0:00:13]}  Rxa6 {[%clk 0:00:04]} 64. Rxa6 {[%clk 0:00:13]}  f1=Q {[%clk 0:00:05]} 65. Re6+ {[%clk 0:00:13]}  Kd3 {[%clk 0:00:05]} 66. Rd6+ {[%clk 0:00:13]}  Ke4 {[%clk 0:00:05]} 67. Re6+ {[%clk 0:00:14]}  Kd5 {[%clk 0:00:05]} 68. Re3 {[%clk 0:00:13]}  Qc4+ {[%clk 0:00:05]} 69. Ka3 {[%clk 0:00:12]}  Qc5+ {[%clk 0:00:05]} 0-1


[Site "https://www.chess.com"]

[Event "Titled Tuesday Blitz June 21 Early 2022"]
[White "Halkias, Stelios"]
[Black "Joie, Sebastien"]
[WhiteFideId "4201809"]
[BlackFideId "650420"]
[WhiteElo "2738"]
[BlackElo "2562"]
[Result "1-0"]
[Round "06"]
[TimeControl "180+1"]
[Date "2022.06.21"]
[WhiteClock "0:00:24"]
[BlackClock "0:00:53"]

1. Nf3 {[%clk 0:03:00]}  d5 {[%clk 0:02:57]} 2. d4 {[%clk 0:03:00]}  Nf6 {[%clk 0:02:56]} 3. c4 {[%clk 0:03:00]}  c6 {[%clk 0:02:57]} 4. Nc3 {[%clk 0:02:59]}  dxc4 {[%clk 0:02:57]} 5. e4 {[%clk 0:02:59]}  b5 {[%clk 0:02:55]} 6. Be2 {[%clk 0:02:59]}  Bg4 {[%clk 0:02:55]} 7. O-O {[%clk 0:02:58]}  e6 {[%clk 0:02:53]} 8. a4 {[%clk 0:02:51]}  b4 {[%clk 0:02:46]} 9. e5 {[%clk 0:02:50]}  Nd5 {[%clk 0:02:45]} 10. Ne4 {[%clk 0:02:49]}  c3 {[%clk 0:02:45]} 11. bxc3 {[%clk 0:02:48]}  Bf5 {[%clk 0:02:46]} 12. Bg5 {[%clk 0:01:45]}  f6 {[%clk 0:02:36]} 13. exf6 {[%clk 0:01:42]}  gxf6 {[%clk 0:02:36]} 14. Nxf6+ {[%clk 0:01:37]}  Nxf6 {[%clk 0:02:35]} 15. Ne5 {[%clk 0:01:37]}  Rg8 {[%clk 0:01:55]} 16. Bh5+ {[%clk 0:01:19]}  Bg6 {[%clk 0:01:55]} 17. Bxg6+ {[%clk 0:01:17]}  hxg6 {[%clk 0:01:56]} 18. Qf3 {[%clk 0:01:01]}  Be7 {[%clk 0:01:55]} 19. Rfe1 {[%clk 0:00:57]}  Qd5 {[%clk 0:01:46]} 20. Qh3 {[%clk 0:00:55]}  Nbd7 {[%clk 0:01:40]} 21. c4 {[%clk 0:00:50]}  Qd6 {[%clk 0:01:21]} 22. Rad1 {[%clk 0:00:41]}  O-O-O {[%clk 0:01:14]} 23. Nf7 {[%clk 0:00:34]}  Qc7 {[%clk 0:01:09]} 24. Nxd8 {[%clk 0:00:28]}  Bxd8 {[%clk 0:01:07]} 25. Qxe6 {[%clk 0:00:27]}  a5 {[%clk 0:00:53]} 26. Bxf6 {[%clk 0:00:24]} 1-0


[Site "https://www.chess.com"]

[Event "Titled Tuesday Blitz June 21 Early 2022"]
[White "Hamidi, Amir Mohammad"]
[Black "Goltseva, Ekaterina"]
[WhiteFideId "12563285"]
[BlackFideId "24173770"]
[WhiteElo "2283"]
[BlackElo "2086"]
[Result "1/2-1/2"]
[Round "06"]
[TimeControl "180+1"]
[Date "2022.06.21"]
[WhiteClock "0:01:05"]
[BlackClock "0:00:16"]

1. Nf3 {[%clk 0:03:00]}  d5 {[%clk 0:02:59]} 2. g3 {[%clk 0:03:00]}  Nf6 {[%clk 0:03:00]} 3. Bg2 {[%clk 0:03:00]}  e6 {[%clk 0:03:00]} 4. O-O {[%clk 0:03:01]}  c5 {[%clk 0:03:01]} 5. d4 {[%clk 0:03:02]}  cxd4 {[%clk 0:03:01]} 6. Nxd4 {[%clk 0:03:02]}  e5 {[%clk 0:03:01]} 7. Nf3 {[%clk 0:03:02]}  Nc6 {[%clk 0:03:00]} 8. c4 {[%clk 0:03:02]}  d4 {[%clk 0:02:57]} 9. e3 {[%clk 0:03:02]}  Be6 {[%clk 0:02:43]} 10. exd4 {[%clk 0:02:59]}  exd4 {[%clk 0:02:42]} 11. Re1 {[%clk 0:02:59]}  Be7 {[%clk 0:02:40]} 12. b3 {[%clk 0:02:57]}  O-O {[%clk 0:02:39]} 13. Ne5 {[%clk 0:02:55]}  Rc8 {[%clk 0:02:37]} 14. Nxc6 {[%clk 0:02:55]}  bxc6 {[%clk 0:02:36]} 15. Nd2 {[%clk 0:02:55]}  Bb4 {[%clk 0:02:32]} 16. Bb2 {[%clk 0:02:54]}  Bg4 {[%clk 0:02:28]} 17. Qc1 {[%clk 0:02:54]}  d3 {[%clk 0:02:25]} 18. a3 {[%clk 0:02:54]}  Bc5 {[%clk 0:02:18]} 19. Qc3 {[%clk 0:02:52]}  Qb6 {[%clk 0:02:00]} 20. Ne4 {[%clk 0:02:46]}  Be7 {[%clk 0:01:42]} 21. Qxd3 {[%clk 0:02:44]}  Bf5 {[%clk 0:01:37]} 22. Qc3 {[%clk 0:02:37]}  Bxe4 {[%clk 0:01:32]} 23. Rxe4 {[%clk 0:02:35]}  Bc5 {[%clk 0:01:33]} 24. Re2 {[%clk 0:02:34]}  Rcd8 {[%clk 0:01:28]} 25. b4 {[%clk 0:02:34]}  Bd4 {[%clk 0:01:28]} 26. Qc2 {[%clk 0:02:34]}  c5 {[%clk 0:01:15]} 27. Bxd4 {[%clk 0:02:31]}  Rxd4 {[%clk 0:01:16]} 28. b5 {[%clk 0:02:26]}  Qa5 {[%clk 0:01:10]} 29. h3 {[%clk 0:02:16]}  Rfd8 {[%clk 0:01:08]} 30. Kh2 {[%clk 0:02:15]}  g6 {[%clk 0:01:05]} 31. Qb2 {[%clk 0:02:02]}  Nd7 {[%clk 0:00:57]} 32. Rae1 {[%clk 0:01:40]}  Nb6 {[%clk 0:00:50]} 33. Bd5 {[%clk 0:01:39]}  Nxd5 {[%clk 0:00:42]} 34. cxd5 {[%clk 0:01:37]}  R8xd5 {[%clk 0:00:40]} 35. Re8+ {[%clk 0:01:30]}  Kg7 {[%clk 0:00:40]} 36. R8e5 {[%clk 0:01:30]}  Qd2 {[%clk 0:00:34]} 37. Qxd2 {[%clk 0:01:29]}  Rxd2 {[%clk 0:00:34]} 38. Rxd5 {[%clk 0:01:30]}  Rxd5 {[%clk 0:00:34]} 39. Re7 {[%clk 0:01:18]}  c4 {[%clk 0:00:30]} 40. Rxa7 {[%clk 0:01:16]}  Rxb5 {[%clk 0:00:19]} 41. a4 {[%clk 0:01:13]}  Rc5 {[%clk 0:00:18]} 42. Re7 {[%clk 0:01:10]}  c3 {[%clk 0:00:16]} 43. Re1 {[%clk 0:01:11]}  c2 {[%clk 0:00:17]} 44. Rc1 {[%clk 0:01:11]}  Kf6 {[%clk 0:00:17]} 45. a5 {[%clk 0:01:06]}  Ke6 {[%clk 0:00:16]} 46. a6 {[%clk 0:01:05]} 1/2-1/2


[Site "https://www.chess.com"]

[Event "Titled Tuesday Blitz June 21 Early 2022"]
[White "Hoffmann, Asa"]
[Black "Reprintsev, Alexander"]
[WhiteFideId "2001470"]
[BlackFideId "14100541"]
[WhiteElo "2117"]
[BlackElo "2108"]
[Result "1-0"]
[Round "06"]
[TimeControl "180+1"]
[Date "2022.06.21"]
[WhiteClock "0:00:38"]
[BlackClock "0:00:02"]

1. d4 {[%clk 0:02:59]}  d5 {[%clk 0:02:46]} 2. Bg5 {[%clk 0:02:58]}  Nc6 {[%clk 0:02:45]} 3. e3 {[%clk 0:02:58]}  f6 {[%clk 0:02:45]} 4. Bh4 {[%clk 0:02:58]}  Nh6 {[%clk 0:02:46]} 5. Bd3 {[%clk 0:02:57]}  Nf5 {[%clk 0:02:42]} 6. Bg3 {[%clk 0:02:55]}  e5 {[%clk 0:02:41]} 7. c3 {[%clk 0:02:39]}  h5 {[%clk 0:02:30]} 8. h3 {[%clk 0:02:28]}  Nxg3 {[%clk 0:02:28]} 9. Bg6+ {[%clk 0:02:26]}  Ke7 {[%clk 0:02:23]} 10. fxg3 {[%clk 0:02:26]}  Qd6 {[%clk 0:02:02]} 11. Qf3 {[%clk 0:02:08]}  e4 {[%clk 0:01:48]} 12. Qf2 {[%clk 0:02:04]}  Rh6 {[%clk 0:01:45]} 13. Bf5 {[%clk 0:02:01]}  Bxf5 {[%clk 0:01:45]} 14. Qxf5 {[%clk 0:02:00]}  Qxg3+ {[%clk 0:01:45]} 15. Qf2 {[%clk 0:02:00]}  Qxf2+ {[%clk 0:01:43]} 16. Kxf2 {[%clk 0:02:00]}  h4 {[%clk 0:01:41]} 17. Ne2 {[%clk 0:01:59]}  g5 {[%clk 0:01:41]} 18. Nd2 {[%clk 0:01:58]}  Ke6 {[%clk 0:01:41]} 19. c4 {[%clk 0:01:51]}  Nb4 {[%clk 0:01:40]} 20. cxd5+ {[%clk 0:01:51]}  Kf5 {[%clk 0:01:29]} 21. Nc3 {[%clk 0:01:46]}  Re8 {[%clk 0:01:27]} 22. Ke2 {[%clk 0:01:44]}  Kg6 {[%clk 0:00:59]} 23. a3 {[%clk 0:01:41]}  Na6 {[%clk 0:00:45]} 24. Ndxe4 {[%clk 0:01:37]}  f5 {[%clk 0:00:46]} 25. Nd2 {[%clk 0:01:37]}  Bd6 {[%clk 0:00:46]} 26. Kd3 {[%clk 0:01:35]}  Kh5 {[%clk 0:00:45]} 27. Rhf1 {[%clk 0:01:34]}  Rf6 {[%clk 0:00:45]} 28. e4 {[%clk 0:01:30]}  fxe4+ {[%clk 0:00:43]} 29. Ndxe4 {[%clk 0:01:28]}  Rxf1 {[%clk 0:00:36]} 30. Rxf1 {[%clk 0:01:28]}  Be7 {[%clk 0:00:31]} 31. Rf7 {[%clk 0:01:21]}  Kg6 {[%clk 0:00:30]} 32. Rf3 {[%clk 0:01:18]}  Nb8 {[%clk 0:00:16]} 33. Nd1 {[%clk 0:01:17]}  Nd7 {[%clk 0:00:14]} 34. Ne3 {[%clk 0:01:17]}  Nf6 {[%clk 0:00:14]} 35. Nxf6 {[%clk 0:01:15]}  Bxf6 {[%clk 0:00:14]} 36. Ng4 {[%clk 0:01:14]}  Bg7 {[%clk 0:00:15]} 37. Re3 {[%clk 0:01:13]}  Rxe3+ {[%clk 0:00:13]} 38. Kxe3 {[%clk 0:01:13]}  Kf5 {[%clk 0:00:13]} 39. a4 {[%clk 0:01:09]}  a5 {[%clk 0:00:14]} 40. b3 {[%clk 0:01:09]}  b6 {[%clk 0:00:14]} 41. Nf2 {[%clk 0:00:59]}  Bf8 {[%clk 0:00:14]} 42. Ne4 {[%clk 0:00:55]}  Be7 {[%clk 0:00:14]} 43. Kf3 {[%clk 0:00:53]}  Bd8 {[%clk 0:00:14]} 44. d6 {[%clk 0:00:50]}  c6 {[%clk 0:00:14]} 45. d7 {[%clk 0:00:43]}  Ke6 {[%clk 0:00:12]} 46. Kg4 {[%clk 0:00:42]}  Kd5 {[%clk 0:00:11]} 47. Nxg5 {[%clk 0:00:41]}  b5 {[%clk 0:00:08]} 48. Nf7 {[%clk 0:00:40]}  Be7 {[%clk 0:00:08]} 49. d8=Q+ {[%clk 0:00:39]}  Bxd8 {[%clk 0:00:08]} 50. Nxd8 {[%clk 0:00:39]}  bxa4 {[%clk 0:00:03]} 51. bxa4 {[%clk 0:00:39]}  Kxd4 {[%clk 0:00:02]} 52. Nxc6+ {[%clk 0:00:38]} 1-0


[Site "https://www.chess.com"]

[Event "Titled Tuesday Blitz June 21 Early 2022"]
[White "Ianov, Viktor"]
[Black "Sapunov, Evgeny"]
[WhiteFideId "14102730"]
[BlackFideId "4126661"]
[WhiteElo "2550"]
[BlackElo "2731"]
[Result "1-0"]
[Round "06"]
[TimeControl "180+1"]
[Date "2022.06.21"]
[WhiteClock "0:01:11"]
[BlackClock "0:00:40"]

1. Nf3 {[%clk 0:03:00]}  Nf6 {[%clk 0:02:56]} 2. g3 {[%clk 0:03:00]}  g6 {[%clk 0:02:55]} 3. b3 {[%clk 0:03:00]}  Bg7 {[%clk 0:02:56]} 4. Bb2 {[%clk 0:03:00]}  O-O {[%clk 0:02:56]} 5. Bg2 {[%clk 0:03:00]}  d6 {[%clk 0:02:57]} 6. d4 {[%clk 0:03:00]}  Nbd7 {[%clk 0:02:57]} 7. O-O {[%clk 0:03:00]}  Re8 {[%clk 0:02:58]} 8. c4 {[%clk 0:02:59]}  c6 {[%clk 0:02:58]} 9. Nc3 {[%clk 0:02:59]}  e5 {[%clk 0:02:58]} 10. e4 {[%clk 0:02:59]}  exd4 {[%clk 0:02:58]} 11. Nxd4 {[%clk 0:02:59]}  Nc5 {[%clk 0:02:58]} 12. Qc2 {[%clk 0:02:57]}  a5 {[%clk 0:02:58]} 13. h3 {[%clk 0:02:56]}  Qb6 {[%clk 0:02:57]} 14. Rfd1 {[%clk 0:02:55]}  a4 {[%clk 0:02:50]} 15. Rab1 {[%clk 0:02:51]}  axb3 {[%clk 0:02:50]} 16. axb3 {[%clk 0:02:52]}  Nfd7 {[%clk 0:02:46]} 17. Nce2 {[%clk 0:02:46]}  Ne5 {[%clk 0:02:41]} 18. Bc3 {[%clk 0:02:45]}  Ra3 {[%clk 0:02:14]} 19. b4 {[%clk 0:02:40]}  Na4 {[%clk 0:02:11]} 20. Ba1 {[%clk 0:02:40]}  Qa7 {[%clk 0:01:53]} 21. f4 {[%clk 0:02:31]}  Nd7 {[%clk 0:01:44]} 22. Kh2 {[%clk 0:02:30]}  Nf6 {[%clk 0:01:42]} 23. b5 {[%clk 0:02:23]}  Bd7 {[%clk 0:01:31]} 24. bxc6 {[%clk 0:02:17]}  bxc6 {[%clk 0:01:27]} 25. Nb3 {[%clk 0:02:12]}  Qf2 {[%clk 0:01:08]} 26. Bd4 {[%clk 0:01:58]}  Ng4+ {[%clk 0:01:05]} 27. hxg4 {[%clk 0:01:56]}  Bxd4 {[%clk 0:01:06]} 28. Nexd4 {[%clk 0:01:50]}  Qxc2 {[%clk 0:01:04]} 29. Nxc2 {[%clk 0:01:50]}  Ra2 {[%clk 0:01:05]} 30. Nb4 {[%clk 0:01:38]}  Re2 {[%clk 0:01:03]} 31. Rxd6 {[%clk 0:01:34]}  Bxg4 {[%clk 0:01:03]} 32. Nd4 {[%clk 0:01:33]}  Rd2 {[%clk 0:00:56]} 33. Nbxc6 {[%clk 0:01:23]}  Rxe4 {[%clk 0:00:52]} 34. Rd8+ {[%clk 0:01:20]}  Kg7 {[%clk 0:00:49]} 35. Nf5+ {[%clk 0:01:17]}  Bxf5 {[%clk 0:00:48]} 36. Rxd2 {[%clk 0:01:17]}  Rxc4 {[%clk 0:00:47]} 37. Rb4 {[%clk 0:01:15]}  Rxb4 {[%clk 0:00:46]} 38. Nxb4 {[%clk 0:01:14]}  Nc5 {[%clk 0:00:47]} 39. Nd5 {[%clk 0:01:14]}  h5 {[%clk 0:00:46]} 40. Ne3 {[%clk 0:01:13]}  Be4 {[%clk 0:00:46]} 41. Bxe4 {[%clk 0:01:13]}  Nxe4 {[%clk 0:00:46]} 42. Rd7 {[%clk 0:01:13]}  Kf8 {[%clk 0:00:46]} 43. Ra7 {[%clk 0:01:12]}  f5 {[%clk 0:00:43]} 44. Nd5 {[%clk 0:01:11]}  Kg8 {[%clk 0:00:41]} 45. Ne7+ {[%clk 0:01:11]}  Kf8 {[%clk 0:00:39]} 46. Nxg6+ {[%clk 0:01:11]}  Ke8 {[%clk 0:00:40]} 47. Ne7 {[%clk 0:01:11]} 1-0


[Site "https://www.chess.com"]

[Event "Titled Tuesday Blitz June 21 Early 2022"]
[White "Jakubowski, Krzysztof"]
[Black "Veiga, Jose Francisco R P Neves"]
[WhiteFideId "1112848"]
[BlackFideId "1930087"]
[WhiteElo "2365"]
[BlackElo "2326"]
[Result "0-1"]
[Round "06"]
[TimeControl "180+1"]
[Date "2022.06.21"]
[WhiteClock "0:00:08"]
[BlackClock "0:00:14"]

1. e4 {[%clk 0:03:00]}  g6 {[%clk 0:03:00]} 2. d4 {[%clk 0:02:58]}  Bg7 {[%clk 0:03:01]} 3. Nc3 {[%clk 0:02:58]}  d5 {[%clk 0:03:01]} 4. e5 {[%clk 0:02:49]}  c6 {[%clk 0:03:01]} 5. f4 {[%clk 0:02:48]}  Nh6 {[%clk 0:03:00]} 6. Nf3 {[%clk 0:02:44]}  Bg4 {[%clk 0:03:00]} 7. Be3 {[%clk 0:02:42]}  f6 {[%clk 0:03:00]} 8. Be2 {[%clk 0:02:33]}  O-O {[%clk 0:02:58]} 9. Qd2 {[%clk 0:02:31]}  Nf5 {[%clk 0:02:51]} 10. Bf2 {[%clk 0:02:29]}  e6 {[%clk 0:02:44]} 11. h3 {[%clk 0:02:26]}  Bxf3 {[%clk 0:02:44]} 12. Bxf3 {[%clk 0:02:27]}  fxe5 {[%clk 0:02:38]} 13. dxe5 {[%clk 0:02:12]}  Nh4 {[%clk 0:02:38]} 14. O-O-O {[%clk 0:01:55]}  Nxf3 {[%clk 0:02:32]} 15. gxf3 {[%clk 0:01:56]}  Bh6 {[%clk 0:02:32]} 16. Ne2 {[%clk 0:01:55]}  Nd7 {[%clk 0:02:32]} 17. h4 {[%clk 0:01:54]}  Nxe5 {[%clk 0:02:30]} 18. h5 {[%clk 0:01:54]}  Nc4 {[%clk 0:02:30]} 19. Qd3 {[%clk 0:01:52]}  Qf6 {[%clk 0:02:23]} 20. Bd4 {[%clk 0:01:49]}  e5 {[%clk 0:02:20]} 21. hxg6 {[%clk 0:01:43]}  Bxf4+ {[%clk 0:02:18]} 22. Kb1 {[%clk 0:01:39]}  h6 {[%clk 0:01:39]} 23. Bc5 {[%clk 0:01:13]}  Rfe8 {[%clk 0:01:28]} 24. Nxf4 {[%clk 0:00:55]}  Qxf4 {[%clk 0:01:23]} 25. Rh5 {[%clk 0:00:37]}  Kg7 {[%clk 0:01:16]} 26. Rf5 {[%clk 0:00:35]}  Qg3 {[%clk 0:00:54]} 27. Rf7+ {[%clk 0:00:33]}  Kh8 {[%clk 0:00:54]} 28. Qf5 {[%clk 0:00:32]}  Nd2+ {[%clk 0:00:15]} 29. Ka1 {[%clk 0:00:28]}  Qxf3 {[%clk 0:00:16]} 30. Qxf3 {[%clk 0:00:15]}  Nxf3 {[%clk 0:00:16]} 31. Rxf3 {[%clk 0:00:16]}  Re6 {[%clk 0:00:17]} 32. Rg1 {[%clk 0:00:14]}  Rg8 {[%clk 0:00:16]} 33. Rfg3 {[%clk 0:00:14]}  Kg7 {[%clk 0:00:16]} 34. Bxa7 {[%clk 0:00:12]}  h5 {[%clk 0:00:10]} 35. c3 {[%clk 0:00:11]}  Rh8 {[%clk 0:00:10]} 36. R3g2 {[%clk 0:00:06]}  h4 {[%clk 0:00:09]} 37. a4 {[%clk 0:00:07]}  h3 {[%clk 0:00:09]} 38. Rh2 {[%clk 0:00:07]}  Rxg6 {[%clk 0:00:09]} 39. Rgh1 {[%clk 0:00:07]}  Rg3 {[%clk 0:00:08]} 40. Bc5 {[%clk 0:00:06]}  Rh6 {[%clk 0:00:05]} 41. Bf2 {[%clk 0:00:05]}  Rf3 {[%clk 0:00:03]} 42. Bb6 {[%clk 0:00:04]}  Kf6 {[%clk 0:00:03]} 43. Ka2 {[%clk 0:00:04]}  Kf5 {[%clk 0:00:04]} 44. Ka3 {[%clk 0:00:04]}  Kg4 {[%clk 0:00:01]} 45. Re2 {[%clk 0:00:04]}  Rg3 {[%clk 0:00:02]} 46. Rf1 {[%clk 0:00:04]}  h2 {[%clk 0:00:02]} 47. Rh1 {[%clk 0:00:02]}  Rgh3 {[%clk 0:00:03]} 48. Bc7 {[%clk 0:00:01]}  Kf3 {[%clk 0:00:03]} 49. Rxe5 {[%clk 0:00:01]}  Kg2 {[%clk 0:00:04]} 50. Ree1 {[%clk 0:00:01]}  Rf3 {[%clk 0:00:04]} 51. Rxh2+ {[%clk 0:00:01]}  Rxh2 {[%clk 0:00:04]} 52. Bxh2 {[%clk 0:00:02]}  Kxh2 {[%clk 0:00:05]} 53. Re7 {[%clk 0:00:02]}  b5 {[%clk 0:00:04]} 54. Rc7 {[%clk 0:00:02]}  d4 {[%clk 0:00:04]} 55. Kb3 {[%clk 0:00:02]}  d3 {[%clk 0:00:05]} 56. Rd7 {[%clk 0:00:02]}  Kg2 {[%clk 0:00:04]} 57. a5 {[%clk 0:00:02]}  Kf2 {[%clk 0:00:05]} 58. a6 {[%clk 0:00:02]}  Ke2 {[%clk 0:00:05]} 59. Re7+ {[%clk 0:00:02]}  Kd2 {[%clk 0:00:05]} 60. a7 {[%clk 0:00:02]}  Rf8 {[%clk 0:00:06]} 61. Rc7 {[%clk 0:00:02]}  Ra8 {[%clk 0:00:06]} 62. Kb4 {[%clk 0:00:02]}  Kc2 {[%clk 0:00:06]} 63. Kc5 {[%clk 0:00:03]}  d2 {[%clk 0:00:06]} 64. Rd7 {[%clk 0:00:03]}  d1=Q {[%clk 0:00:07]} 65. Rxd1 {[%clk 0:00:03]}  Kxd1 {[%clk 0:00:08]} 66. Kb6 {[%clk 0:00:03]}  Kc2 {[%clk 0:00:08]} 67. b4 {[%clk 0:00:03]}  Kxc3 {[%clk 0:00:08]} 68. Kb7 {[%clk 0:00:03]}  Rxa7+ {[%clk 0:00:08]} 69. Kxa7 {[%clk 0:00:04]}  Kxb4 {[%clk 0:00:09]} 70. Kb6 {[%clk 0:00:05]}  c5 {[%clk 0:00:10]} 71. Kc6 {[%clk 0:00:05]}  c4 {[%clk 0:00:11]} 72. Kd5 {[%clk 0:00:06]}  c3 {[%clk 0:00:12]} 73. Kd4 {[%clk 0:00:07]}  c2 {[%clk 0:00:13]} 74. Kd3 {[%clk 0:00:07]}  c1=Q {[%clk 0:00:14]} 75. Kd4 {[%clk 0:00:08]}  Qc4+ {[%clk 0:00:14]} 0-1


[Site "https://www.chess.com"]

[Event "Titled Tuesday Blitz June 21 Early 2022"]
[White "Kopczynski, Michal"]
[Black "Williams, Simon K"]
[WhiteFideId "1124200"]
[BlackFideId "404454"]
[WhiteElo "2235"]
[BlackElo "2468"]
[Result "1/2-1/2"]
[Round "06"]
[TimeControl "180+1"]
[Date "2022.06.21"]
[WhiteClock "0:00:17"]
[BlackClock "0:00:06"]

1. e4 {[%clk 0:02:55]}  c5 {[%clk 0:01:25]} 2. d4 {[%clk 0:02:54]}  cxd4 {[%clk 0:01:25]} 3. c3 {[%clk 0:02:54]}  d5 {[%clk 0:01:25]} 4. exd5 {[%clk 0:02:54]}  Nf6 {[%clk 0:01:25]} 5. cxd4 {[%clk 0:02:54]}  Nxd5 {[%clk 0:01:25]} 6. Nf3 {[%clk 0:02:54]}  Nc6 {[%clk 0:01:24]} 7. Nc3 {[%clk 0:02:55]}  Bg4 {[%clk 0:01:24]} 8. Be2 {[%clk 0:02:55]}  e6 {[%clk 0:01:24]} 9. h3 {[%clk 0:02:55]}  Bh5 {[%clk 0:01:24]} 10. O-O {[%clk 0:02:56]}  Be7 {[%clk 0:01:24]} 11. Be3 {[%clk 0:02:46]}  O-O {[%clk 0:01:24]} 12. Rc1 {[%clk 0:02:46]}  Rc8 {[%clk 0:01:23]} 13. Nxd5 {[%clk 0:02:40]}  Qxd5 {[%clk 0:01:23]} 14. Qa4 {[%clk 0:02:38]}  Qa5 {[%clk 0:01:19]} 15. Qxa5 {[%clk 0:02:12]}  Nxa5 {[%clk 0:01:18]} 16. g4 {[%clk 0:02:13]}  Bg6 {[%clk 0:01:18]} 17. Ne5 {[%clk 0:02:12]}  Rfd8 {[%clk 0:01:12]} 18. Nxg6 {[%clk 0:02:06]}  hxg6 {[%clk 0:01:12]} 19. Bf3 {[%clk 0:02:04]}  b6 {[%clk 0:01:08]} 20. b3 {[%clk 0:01:58]}  Ba3 {[%clk 0:01:07]} 21. Rxc8 {[%clk 0:01:51]}  Rxc8 {[%clk 0:01:07]} 22. Be4 {[%clk 0:01:44]}  Kf8 {[%clk 0:01:00]} 23. f4 {[%clk 0:01:35]}  Rc3 {[%clk 0:00:54]} 24. Kf2 {[%clk 0:01:34]}  f5 {[%clk 0:00:48]} 25. Bb1 {[%clk 0:01:22]}  Nc6 {[%clk 0:00:45]} 26. d5 {[%clk 0:01:03]}  exd5 {[%clk 0:00:43]} 27. gxf5 {[%clk 0:01:04]}  gxf5 {[%clk 0:00:39]} 28. Bxf5 {[%clk 0:01:04]}  Bc5 {[%clk 0:00:36]} 29. Re1 {[%clk 0:00:55]}  Rxe3 {[%clk 0:00:24]} 30. Rxe3 {[%clk 0:00:56]}  Kf7 {[%clk 0:00:18]} 31. Be6+ {[%clk 0:00:54]}  Kf6 {[%clk 0:00:15]} 32. Bxd5 {[%clk 0:00:54]}  Ne7 {[%clk 0:00:16]} 33. Be4 {[%clk 0:00:53]}  Nc8 {[%clk 0:00:15]} 34. Kf3 {[%clk 0:00:52]}  Bxe3 {[%clk 0:00:15]} 35. Kxe3 {[%clk 0:00:53]}  Nd6 {[%clk 0:00:15]} 36. Bd3 {[%clk 0:00:53]}  Ke6 {[%clk 0:00:15]} 37. Kd4 {[%clk 0:00:53]}  Nb7 {[%clk 0:00:12]} 38. b4 {[%clk 0:00:52]}  Nd8 {[%clk 0:00:12]} 39. Be4 {[%clk 0:00:51]}  Kd6 {[%clk 0:00:12]} 40. a4 {[%clk 0:00:50]}  Nf7 {[%clk 0:00:12]} 41. a5 {[%clk 0:00:48]}  Nd8 {[%clk 0:00:11]} 42. Kc4 {[%clk 0:00:45]}  Ne6 {[%clk 0:00:10]} 43. f5 {[%clk 0:00:32]}  Nc7 {[%clk 0:00:09]} 44. Kd4 {[%clk 0:00:28]}  Nb5+ {[%clk 0:00:08]} 45. Ke3 {[%clk 0:00:27]}  Ke5 {[%clk 0:00:08]} 46. Bd3 {[%clk 0:00:25]}  Nd6 {[%clk 0:00:08]} 47. axb6 {[%clk 0:00:22]}  axb6 {[%clk 0:00:08]} 48. Be2 {[%clk 0:00:18]}  Nxf5+ {[%clk 0:00:09]} 49. Kd3 {[%clk 0:00:19]}  Nd6 {[%clk 0:00:09]} 50. Bf3 {[%clk 0:00:19]}  Kf4 {[%clk 0:00:09]} 51. Bd5 {[%clk 0:00:18]}  Ke5 {[%clk 0:00:08]} 52. Bf3 {[%clk 0:00:18]}  g5 {[%clk 0:00:08]} 53. Bg4 {[%clk 0:00:18]}  Kd5 {[%clk 0:00:07]} 54. Bf3+ {[%clk 0:00:18]}  Ke5 {[%clk 0:00:08]} 55. Bg4 {[%clk 0:00:18]}  Ne4 {[%clk 0:00:06]} 56. Bf3 {[%clk 0:00:17]}  Nd6 {[%clk 0:00:06]} 1/2-1/2


[Site "https://www.chess.com"]